{"text_format":"3","workbook":"xlsx","n_sheets":3,"sheets":["Pärandvara inventuur","Pärandvarad","Pärandvara kohustused"],"not_rendered":{"defined_names":2},"read":"whole","date_system":"1900"}

{"sheet":"Pärandvara inventuur","index":0,"n_rows":45,"n_cols":35,"rows_kept":45,"merged":[[0,1,0,30],[0,31,0,39],[1,1,5,39],[6,1,6,6],[6,7,6,39],[7,1,7,6],[7,7,7,39],[9,1,9,6],[9,7,9,39],[10,1,10,6],[10,7,10,39],[11,1,11,6],[11,7,11,20],[11,21,11,26],[11,27,11,30],[11,31,11,33],[11,34,11,39],[12,1,12,6],[12,7,12,20],[12,21,12,26],[13,1,13,6],[13,7,13,20],[13,21,13,26],[14,1,14,6],[14,7,14,20],[14,21,14,26],[15,1,15,6],[17,1,17,39],[18,1,18,6],[18,7,18,12],[18,13,18,15],[18,16,18,18],[18,19,18,26],[18,27,18,31],[18,32,18,39],[19,1,19,6],[19,7,19,12],[19,13,19,15],[19,16,19,18],[19,19,19,26],[19,27,19,31],[19,32,19,39],[20,1,20,6],[20,7,20,12],[20,13,20,15],[20,16,20,18],[20,19,20,26],[20,27,20,31],[20,32,20,39],[21,1,21,6],[21,7,21,12],[21,13,21,15],[21,16,21,18],[21,19,21,26],[21,27,21,31],[21,32,21,39],[22,1,22,6],[22,7,22,12],[22,13,22,15],[22,16,22,18],[22,19,22,26],[22,27,22,31],[22,32,22,39],[23,1,23,6],[23,7,23,12],[23,13,23,15],[23,16,23,18],[23,19,23,26],[23,27,23,31],[23,32,23,39],[25,1,25,39],[26,1,26,6],[26,7,26,12],[26,13,26,18],[26,19,26,26],[26,27,26,31],[26,32,26,39],[27,1,27,6],[27,7,27,12],[27,13,27,18],[27,19,27,26],[27,27,27,31],[27,32,27,39],[28,1,28,6],[28,7,28,12],[28,13,28,18],[28,19,28,26],[28,27,28,31],[28,32,28,39],[29,1,29,6],[29,7,29,12],[29,13,29,18],[29,19,29,26],[29,27,29,31],[29,32,29,39],[30,1,30,6],[30,7,30,12],[30,13,30,18],[30,19,30,26],[30,27,30,31],[30,32,30,39],[31,1,31,6],[31,7,31,12],[31,13,31,18],[31,19,31,26],[31,27,31,31],[31,32,31,39],[33,1,33,12],[33,14,33,39],[34,1,34,12],[34,14,34,21],[34,22,34,25],[34,26,34,33],[34,34,34,39],[35,2,35,12],[35,14,35,21],[35,22,35,25],[35,26,35,33],[35,34,35,39],[36,2,36,12],[36,14,36,21],[36,22,36,25],[36,26,36,33],[36,34,36,39],[37,2,37,12],[37,14,37,21],[37,22,37,25],[37,26,37,33],[37,34,37,39],[38,2,38,12],[38,14,38,21],[38,22,38,25],[38,26,38,33],[38,34,38,39],[39,2,39,12],[39,14,39,21],[39,22,39,25],[39,26,39,33],[39,34,39,39],[40,2,40,12],[40,14,40,21],[40,22,40,25],[40,26,40,33],[40,34,40,39],[41,2,41,12],[41,14,41,21],[41,22,41,25],[41,26,41,33],[41,34,41,39],[42,2,42,12],[42,14,42,21],[42,22,42,25],[42,26,42,33],[42,34,42,38],[43,2,43,12],[43,14,43,21],[43,22,43,25],[43,26,43,33],[43,34,43,39],[44,2,44,12],[44,14,44,21],[44,22,44,25],[44,26,44,33],[44,34,44,39]]}
[]
[null,"Pärandvara inventuur"]
[]
[]
[]
[]
[null,"Testamenditäitjate nimed",{"$nulls":5},"Oliver Laurits"]
[null,"Kontaktteave",{"$nulls":5},"Kuuseoksa puiestee 321, 12345 Rapla"]
[]
[null,"Lahkunu nimi",{"$nulls":5},"Rauno Rummo"]
[null,"Tänav, maja",{"$nulls":5},"Jõhvika tn 6789"]
[null,"Linn",{"$nulls":5},"Tartu",{"$nulls":13},"Olek",{"$nulls":5},"NY",{"$nulls":3},"Sihtnumber",null,null,98052]
[null,"Isikukood",{"$nulls":5},"AAA-GG-SSSS",{"$nulls":13},"Amet",{"$nulls":5},"Hambaarst"]
[null,"Sünnikuupäev",{"$nulls":5},"1965-12-08",{"$nulls":13},"Sünnikoht",{"$nulls":5},"NY"]
[null,"Surmakuupäev",{"$nulls":5},{"$f":"TODAY()-3","v":"2022-05-14"},{"$nulls":13},"Surmakoht",{"$nulls":5},"NY"]
[null,"Lisateave"]
[]
[null,"  Abikaasa, lapsed ja muud ülalpeetavad"]
[null,"Nimi",{"$nulls":5},"Seos",{"$nulls":5},"Ülalpeetav",null,null,"Vanus",null,null,"Aadress",{"$nulls":7},"Telefoninumber",{"$nulls":4},"Meiliaadress"]
[null,"Mai Kuusik",{"$nulls":5},"Isiklik esindaja",{"$nulls":5},"Ei",null,null,30]
[null,"Kristina Aare",{"$nulls":5},"Abikaasa/elukaaslane",{"$nulls":5},"Jah",null,null,35]
[null,"Paulus Klavan",{"$nulls":5},"Laps",{"$nulls":5},"Jah",null,null,12]
[]
[]
[]
[null,"Professionaalsed nõustajad"]
[null,"Nõustaja tüüp",{"$nulls":5},"Kontaktisik",{"$nulls":5},"Ettevõte",{"$nulls":5},"Aadress",{"$nulls":7},"Telefoninumber",{"$nulls":4},"Meiliaadress"]
[null,"Raamatupidaja"]
[null,"Jurist/notar"]
[null,"Muu"]
[]
[]
[]
[null,"  Pärandvara kontroll-loend",{"$nulls":12},"  Pärandvara inventuur"]
[null,"    Esemete kontroll-loend",{"$nulls":12},"Pärandvara",{"$nulls":7},"Väärtus (€)",{"$nulls":3},"Pärandvara kohustused",{"$nulls":7},"Väärtus (€)"]
[null,"✔","Testament või muud dokumendid",{"$nulls":11},{"$f":"Pärandvarad!B12","v":"Pangakontod"},{"$nulls":7},{"$f":"Pärandvarad!G20","v":{"v":0,"d":"0.00 €"}},{"$nulls":3},{"$f":"'Pärandvara kohustused'!B11","v":"Hüpoteeklaenud"},{"$nulls":7},{"$f":"'Pärandvara kohustused'!G18","v":{"v":0,"d":"0.00 €"}}]
[null,"✔","Seifi rendileping ja võtmed",{"$nulls":11},{"$f":"Pärandvarad!B22","v":"Isiklikud investeeringud"},{"$nulls":7},{"$f":"Pärandvarad!G30","v":{"v":0,"d":"0.00 €"}},{"$nulls":3},{"$f":"'Pärandvara kohustused'!B21","v":"Isiklikud laenud ja krediidiliinid"},{"$nulls":7},{"$f":"'Pärandvara kohustused'!G28","v":{"v":0,"d":"0.00 €"}}]
[null,"✖","Arvutite ja veebikontode paroolid",{"$nulls":11},{"$f":"Pärandvarad!B32","v":"Ärihuvid"},{"$nulls":7},{"$f":"Pärandvarad!G40","v":{"v":0,"d":"0.00 €"}},{"$nulls":3},{"$f":"'Pärandvara kohustused'!B31","v":"Ärihuvid"},{"$nulls":7},{"$f":"'Pärandvara kohustused'!G38","v":{"v":0,"d":"0.00 €"}}]
[null,"✔","Usaldusfondi lepingud",{"$nulls":11},{"$f":"Pärandvarad!B42","v":"Kinnisvara"},{"$nulls":7},{"$f":"Pärandvarad!G50","v":{"v":0,"d":"0.00 €"}},{"$nulls":3},{"$f":"'Pärandvara kohustused'!B41","v":"Krediitkaardid"},{"$nulls":7},{"$f":"'Pärandvara kohustused'!G48","v":{"v":0,"d":"0.00 €"}}]
[null,"✔","Elukindlustus, tervise-/õnnetusjuhtumikindlustus ja kindlustuspoliisid",{"$nulls":11},{"$f":"Pärandvarad!B52","v":"Pensionikavad"},{"$nulls":7},{"$f":"Pärandvarad!G60","v":{"v":0,"d":"0.00 €"}},{"$nulls":3},{"$f":"'Pärandvara kohustused'!B51","v":"Muud kohustused"},{"$nulls":7},{"$f":"'Pärandvara kohustused'!G58","v":{"v":0,"d":"0.00 €"}}]
[null,"✔","Finantsaruanded",{"$nulls":11},{"$f":"Pärandvarad!B62","v":"Kindlustus"},{"$nulls":7},{"$f":"Pärandvarad!G70","v":{"v":0,"d":"0.00 €"}}]
[null,"✔","Viimase kolme aasta tuludeklaratsioonid",{"$nulls":11},{"$f":"Pärandvarad!B72","v":"Eraisiku laenud ja hüpoteegid"},{"$nulls":7},{"$f":"Pärandvarad!G80","v":{"v":0,"d":"0.00 €"}}]
[null,"✔","Sünni- ja surmatunnistused",{"$nulls":11},{"$f":"Pärandvarad!B82","v":"Huvi muudes varades ja usaldusfondides"},{"$nulls":7},{"$f":"Pärandvarad!G90","v":{"v":0,"d":"0.00 €"}}]
[null,"✖","Lepingud, hüpoteegid ja liisinguaruanded",{"$nulls":11},{"$f":"Pärandvarad!B92","v":"Isiklikud tarbeesemed ja muu vara"},{"$nulls":7},{"$f":"Pärandvarad!G100","v":{"v":0,"d":"0.00 €"}}]
[null,"☐","Tasumata vekslid ja võlakirjad",{"$nulls":11},"Varad kokku",{"$nulls":7},{"$f":"Pärandvarad!G10","v":{"v":0,"d":"0.00 €"}},{"$nulls":3},"Kohustused kokku",{"$nulls":7},{"$f":"SUM(AI36:AN44)","v":{"v":0,"d":"0.00 €"}}]

{"sheet":"Pärandvarad","index":1,"n_rows":100,"n_cols":8,"rows_kept":100,"merged":[[0,1,0,7],[1,1,5,7],[6,1,7,7],[11,1,11,7],[12,1,12,7],[21,1,21,7],[22,1,22,7],[31,1,31,7],[32,1,32,7],[41,1,41,7],[42,1,42,7],[51,1,51,7],[52,1,52,7],[61,1,61,7],[62,1,62,7],[71,1,71,7],[72,1,72,7],[81,1,81,7],[82,1,82,7],[91,1,91,7],[92,1,92,7]]}
[]
[null,"Pärandvara"]
[]
[]
[]
[]
[null,"Sellel töölehel saate luua pärandvara inventuuri. Peate määrama iga vara turuväärtuse surmakuupäeva seisuga. Turuväärtuste saamiseks vaadake läbi kõik kirjed, sh finantsaruanded, kindlustuspoliisid ja maksutagastused. Võimalik, et peate laskma teha ka isiklike esemete (nt kunstiteosed, kollektsioonid, antiikesemeid jne) hindamise. Kaasake inventuuri kindlasti ka välismaal asuvad varad, näiteks kinnisvara, väärtpaberid või välismaised ärihuvid. Välismaal asuvate varade turuväärtuse hankimiseks võite vajada asjatundjate abi."]
[]
[]
[null,"Varad kokku",{"$nulls":4},{"$f":"tblPangakontod[[#Totals],[Saldo ]]+tblErainvesteeringud[[#Totals],[Turuväärtus]]+tblÄriosalused[[#Totals],[Väärtus ]]+tblKinnisvara[[#Totals],[Turuhind]]+tblPensionikavad[[#Totals],[Väärtus ]]+tblKindlustus[[#Totals],[Rahaline väärtus ]]+tblHüpoteegid[[#Totals],[Makstav summa ]]+tblUsaldusfondid[[#Totals],[Jaotatav summa]]+tblMuudVarad[[#Totals],[Väärtus ]]","v":{"v":0,"d":"0.00 €"}}]
[]
[null,"Pangakontod"]
[null,"Loetlege kõik pangakontod, sh sularaha, reisitšekid, maksekorraldused ning kommertspankade, hoiupankade, krediidiühingute jms kontod. Lisage kõik kontol loetletud nimed ning tegelik täpne rahaline väärtus eurodes ja sentides surma hetkel."]
[null,"Finantsasutus ","Aadress","Telefon","Kontonumber","Konto tüüp","Saldo ","Märkused"]
[]
[]
[]
[]
[]
[null,"Kokku",{"$nulls":4},{"$f":"SUBTOTAL(109,tblPangakontod[[Saldo ]])","v":{"v":0,"d":"0.00 €"}}]
[]
[null,"Isiklikud investeeringud"]
[null,"Loetlege sularahakontod, võimenduskontod, maksuvabad hoiukontod, registreeritud pensionikogumiskavad (RRSP-d), registreeritud pensionifondid (RRIF-id), lukustatud RRIF-id, lukustatud RRSP-d, eluaegse sissetuleku fondid, ettenähtud pensionifondid, registreeritud õppemaksukogumiskavad, elurendised jne."]
[null,"Ettevõte","Aadress","Telefon","Kontonumber","Soodustatud isik","Turuväärtus","Märkmed"]
[]
[]
[]
[]
[]
[null,"Kokku",{"$nulls":4},{"$f":"SUBTOTAL(109,tblErainvesteeringud[Turuväärtus])","v":{"v":0,"d":"0.00 €"}}]
[]
[null,"Ärihuvid"]
[null,"Loetlege kõik ärihuvid, sh füüsilisest isikust ettevõtjad, praksised, ettevõtted, partnerlused, piiratud vastutusega äriühingud ja partnerlused, ühisettevõtted ja muud börsil mittekaubeldavad äriüksused. "]
[null,"Ettevõtte nimi","Aadress","Telefon","Kontaktisik","Tüüp","Väärtus ","Märkmed"]
[]
[]
[]
[]
[]
[null,"Kokku",{"$nulls":4},{"$f":"SUBTOTAL(109,tblÄriosalused[[Väärtus ]])","v":{"v":0,"d":"0.00 €"}}]
[]
[null,"Kinnisvara"]
[null,"Loetlege kõik kinnisvaraobjektid, mille puhul lahkunu ja/või lahkunu üleelanud abikaasa/elukaaslane on omanik, ühisomanik või omab mis tahes huvi, sh puhkearendustes ja osaajakasutusõigusega ostetud vara. Hankige lepingute koopiad. Esitage kinnisvara kirjeldus koos füüsilise aadressiga. Loetlege vara õiglane turuväärtus."]
[null,"Aadress","Eseme valdaja","Telefon","Kontaktisik","Ostuhind","Turuhind","Märkmed"]
[]
[]
[]
[]
[]
[null,"Kokku",{"$nulls":3},{"$f":"SUBTOTAL(109,tblKinnisvara[Ostuhind])","v":{"v":0,"d":"0.00 €"}},{"$f":"SUBTOTAL(109,tblKinnisvara[Turuhind])","v":{"v":0,"d":"0.00 €"}}]
[]
[null,"Pensionikavad"]
[null,"Loetlege määratletud soodustused, rahalised ostud või määratletud toetused, ettemakstud kasumi jaotusplaanid või rühma pesnionisäästufondid jne."]
[null,"Ettevõte","Telefon","Kava tüüp","Soodustatud isik","Meiliaadress","Väärtus ","Märkmed"]
[]
[]
[]
[]
[]
[null,"Kokku",{"$nulls":4},{"$f":"SUBTOTAL(109,tblPensionikavad[[Väärtus ]])","v":{"v":0,"d":"0.00 €"}}]
[]
[null,"Kindlustus"]
[null,"Lisage mittepärandvarana usaldusfondid, elukindlustuspoliisid, millel on nimelised soodustatud isikud, ja investeerimiskontod, mis kanduvad surma korral edasi. Kui kohus nende varade kohta pärib, saab täitja hõlpsalt viidata mittepärandvara loendile ja selgitada nende puudumist pärandvara inventuurist."]
[null,"Väljastaja","Poliisi number","Telefon","Soodustatud isik","Nimiväärtus ","Rahaline väärtus ","Märkmed"]
[]
[]
[]
[]
[]
[null,"Kokku",{"$nulls":3},{"$f":"SUBTOTAL(109,tblKindlustus[[Nimiväärtus ]])","v":{"v":0,"d":"0.00 €"}},{"$f":"SUBTOTAL(109,tblKindlustus[[Rahaline väärtus ]])","v":{"v":0,"d":"0.00 €"}}]
[]
[null,"Eraisiku laenud ja hüpoteegid"]
[null,"Loetlege eralaenud ja -hüpoteegid, kus lahkunu oli laenuandja."]
[null,"Laenusaaja nimi","Aadress","Telefon","Tüüp","Algsumma","Makstav summa ","Märkmed"]
[]
[]
[]
[]
[]
[null,"Kokku",{"$nulls":3},{"$f":"SUBTOTAL(109,tblHüpoteegid[Algsumma])","v":{"v":0,"d":"0.00 €"}},{"$f":"SUBTOTAL(109,tblHüpoteegid[[Makstav summa ]])","v":{"v":0,"d":"0.00 €"}}]
[]
[null,"Huvi muudes varades ja usaldusfondides"]
[null,"Loetlege lahkunu nimele registreeritud varad, mida lahkunu haldas teiste isikute nimel (nt varad, mida lahkunu haldas usaldusisikuna või volikirja alusel)."]
[null,"Vara/usaldusfondi nimi","Testamenditäitja/usaldusisiku nimi","Telefon","Aadress","Meiliaadress","Jaotatav summa","Märkmed"]
[]
[]
[]
[]
[]
[null,"Kokku",{"$nulls":4},{"$f":"SUBTOTAL(109,tblUsaldusfondid[Jaotatav summa])","v":{"v":0,"d":"0.00 €"}}]
[]
[null,"Isiklikud tarbeesemed ja muu vara"]
[null,"Loetlege kõik isiklikud esemed, näiteks autod, ehted, kunstiteosed, antiikesemed, mööbel. Lisage esemed, mida võidi turvalisuse huvides hoida seifis."]
[null,"Eseme kirjeldus","Asukoht","Telefon","Kontaktisik","Soodustatud isik","Väärtus ","Märkused"]
[]
[]
[]
[]
[]
[null,"Kokku",{"$nulls":4},{"$f":"SUBTOTAL(109,tblMuudVarad[[Väärtus ]])","v":{"v":0,"d":"0.00 €"}}]

{"sheet":"Pärandvara kohustused","index":2,"n_rows":58,"n_cols":8,"rows_kept":58,"merged":[[0,1,0,7],[1,1,5,7],[6,1,6,7],[10,1,10,7],[20,1,20,7],[30,1,30,7],[40,1,40,7],[50,1,50,7]]}
[]
[null,"Pärandvara kohustused"]
[]
[]
[]
[]
[null,"Sellele töölehele saate märkida nii kohalike kui ka välismaiste varade kohustuste üksikasjad. Teil on vaja iga kohustuse hindamist surmakuupäeva seisuga."]
[]
[null,"Varad kokku",{"$nulls":4},{"$f":"SUM(G18,G28,G38,G48,G58)","v":{"v":0,"d":"0.00 €"}}]
[]
[null,"Hüpoteeklaenud"]
[null,"Finantsasutus ","Aadress","Telefon","Eseme valdaja","Kontonumber","Saldo ","Märkused"]
[]
[]
[]
[]
[]
[null,"Kokku",{"$nulls":4},{"$f":"SUBTOTAL(109,tblPangakontod2[[Saldo ]])","v":{"v":0,"d":"0.00 €"}}]
[]
[]
[null,"Isiklikud laenud ja krediidiliinid"]
[null,"Finantsasutus","Aadress","Telefon"," Kontonumber","Tüüp","Saldo ","Märkmed"]
[]
[]
[]
[]
[]
[null,"Kokku",{"$nulls":4},{"$f":"SUBTOTAL(109,tblErainvesteeringud3[[Saldo ]])","v":{"v":0,"d":"0.00 €"}}]
[]
[]
[null,"Ärihuvid"]
[null,"Ettevõtte nimi","Aadress"," Telefon"," Kontaktisik","Tüüp","Väärtus ","Märkmed"]
[]
[]
[]
[]
[]
[null,"Kokku",{"$nulls":4},{"$f":"SUBTOTAL(109,tblÄriosalused4[[Väärtus ]])","v":{"v":0,"d":"0.00 €"}}]
[]
[]
[null,"Krediitkaardid"]
[null,"Krediitkaardiettevõte","Ettevõtte aadress","Telefon","Kaardi number","Aegumiskuupäev ","Saldo ","Märkmed"]
[]
[]
[]
[]
[]
[null,"Kokku",{"$nulls":4},{"$f":"SUBTOTAL(109,tblKinnisvara5[[Saldo ]])","v":{"v":0,"d":"0.00 €"}}]
[]
[]
[null,"Muud kohustused"]
[null,"Eseme kirjeldus","Asukoht","Telefon","Kontaktisik","Soodustatud isik","Väärtus ","Märkused"]
[]
[]
[]
[]
[]
[null,"Kokku",{"$nulls":4},{"$f":"SUBTOTAL(109,tblPensionikavad6[[Väärtus ]])","v":{"v":0,"d":"0.00 €"}}]